bitfinex-derivatives/quotes_BTCF0:USTF0_20260119
["timestamp","ask_amount","ask_price","bid_price","bid_amount"]
[1768813970262,0.02509497,93104.0,93092.0,0.010747]
[1768813970566,0.01839632,93105.0,93092.0,0.010747]
[1768813970765,0.0250942,93104.0,93092.0,0.010747]
[1768813970960,0.0250942,93104.0,93084.0,0.00236346]
[1768813970961,0.09672,93107.0,93096.0,0.010747]
[1768813971270,0.02509406,93106.0,93096.0,0.010747]
[1768813971472,0.02509406,93105.0,93096.0,0.010747]
[1768813971768,0.09672,93105.0,93101.0,0.00901821]
[1768813972068,0.09672,93120.0,93110.0,0.010745]
[1768813972273,0.12181652,93119.0,93110.0,0.010745]
[1768813972470,0.09672,93118.0,93110.0,0.010745]
[1768813972663,0.09672,93119.0,93110.0,0.010745]
[1768813973369,0.09672,93119.0,93110.0,0.03772474]
[1768813973575,0.09672,93124.0,93116.0,0.02697974]
[1768813973772,0.02509659,93123.0,93113.0,0.010745]
[1768813973975,0.02509659,93122.0,93115.0,0.02697974]
[1768813974173,0.09672,93124.0,93115.0,0.02697974]
[1768813974174,0.02509659,93121.0,93115.0,0.02697974]
[1768813974361,0.09672,93124.0,93115.0,0.010745]
[1768813974560,0.09672,93124.0,93117.0,0.010745]
[1768813974761,0.09672,93124.0,93114.0,0.010745]
[1768813975064,0.09672,93124.0,93115.0,0.02697974]
[1768813975372,0.09672,93124.0,93116.0,0.02697974]
[1768813975771,0.09672,93124.0,93117.0,0.02697974]
[1768813975966,0.09672,93124.0,93118.0,0.010744]
[1768813976369,0.09672,93124.0,93118.0,0.03772374]
[1768813976872,0.09672,93128.0,93122.0,0.010744]
[1768813977079,3.3e-07,93129.0,93125.0,0.010744]
[1768813977273,0.09672,93131.0,93125.0,0.010744]
[1768813977476,0.09672,93131.0,93125.0,0.03772374]
[1768813977678,0.09672,93131.0,93125.0,0.010744]
[1768813977978,0.09672,93134.0,93127.0,0.02697974]
[1768813978182,0.09672,93134.0,93128.0,0.010743]
[1768813978681,0.09672,93134.0,93129.0,0.02697974]
[1768813979472,0.09672,93140.0,93131.0,0.02697974]
[1768813979682,0.00236193,93144.0,93136.0,0.010742]
[1768813979986,0.00236182,93149.0,93138.0,0.02697974]
[1768813980284,0.00236182,93149.0,93131.0,0.0095972]
[1768813980472,0.00236182,93149.0,93133.0,0.02697974]
[1768813980783,0.02190253,93149.0,93135.0,0.010742]
[1768813980982,0.02190253,93149.0,93130.0,0.00501061]
[1768813981274,0.02190253,93149.0,93130.0,0.14904325]
[1768813981682,0.02190253,93149.0,93136.0,0.010742]
[1768813982073,0.0122909,93149.0,93136.0,0.010742]
[1768813982275,0.00236182,93149.0,93136.0,0.010742]
[1768813982474,0.00236182,93149.0,93133.0,0.00496803]
[1768813983380,0.00236182,93149.0,93137.0,0.010742]
[1768813983683,0.02190253,93149.0,93130.0,0.14403264]
[1768813984480,0.02190253,93149.0,93132.0,0.010743]
[1768813988087,0.02190253,93149.0,93129.0,0.01459696]
[1768813989487,0.02190253,93149.0,93135.0,0.010742]
[1768813992390,0.01954071,93147.0,93130.0,0.14403264]
[1768813992585,0.01954071,93147.0,93129.0,0.00499976]
[1768813993490,0.010742,93141.0,93126.0,0.107464]
[1768813993790,0.010742,93144.0,93126.0,0.107464]
[1768813994584,0.010742,93144.0,93128.0,0.010743]
[1768813994981,0.01954071,93137.0,93115.0,0.010745]
[1768813995190,0.010744,93126.0,93109.0,0.010745]
[1768813995383,0.01954071,93126.0,93110.0,0.09668]
[1768813995583,0.01954071,93126.0,93110.0,0.25798399]
[1768813995889,0.01954071,93126.0,93108.0,0.01592459]
[1768813996187,0.00992908,93126.0,93111.0,0.010745]
[1768813996785,0.00992908,93126.0,93110.0,0.010745]
[1768813996986,0.00992908,93126.0,93112.0,0.010745]
[1768813998081,0.00992908,93126.0,93110.0,0.14884205]
[1768813998387,0.00992908,93126.0,93110.0,0.00480941]
[1768813998580,0.00992908,93126.0,93111.0,0.010745]
[1768813998994,0.00016108,93128.0,93111.0,0.01550157]
[1768814001094,0.01090408,93128.0,93111.0,0.01550157]
[1768814001292,0.00016108,93128.0,93111.0,0.01550157]
[1768814002584,0.14403264,93121.0,93104.0,0.01558831]
[1768814002796,0.01887772,93120.0,93104.0,0.010746]
[1768814002996,0.01887772,93120.0,93106.0,0.010746]
[1768814003681,0.01887772,93120.0,93102.0,0.010746]
[1768814003886,0.01887772,93120.0,93101.0,0.09668]
[1768814004087,0.14403264,93111.0,93095.0,0.01419526]
[1768814004287,0.01887772,93113.0,93102.0,0.010746]
[1768814004905,0.01887772,93113.0,93099.0,0.010747]
[1768814005096,0.01887772,93113.0,93096.0,0.010747]
[1768814005097,0.01887772,93108.0,93096.0,0.010747]
[1768814005388,0.01887772,93108.0,93086.0,0.00480812]
[1768814005389,0.01887772,93108.0,93094.0,0.010747]
[1768814007894,0.14403264,93104.0,93091.0,0.010748]
[1768814008094,0.00919852,93110.0,93090.0,0.14882471]
[1768814008295,0.00919852,93110.0,93096.0,0.010747]
[1768814008505,0.00919852,93110.0,93098.0,0.010747]
[1768814008797,0.15323116,93110.0,93098.0,0.010747]
[1768814009193,0.00919852,93110.0,93098.0,0.010747]
[1768814011002,0.15323116,93110.0,93098.0,0.010747]
[1768814011199,0.01887772,93109.0,93093.0,0.010747]
[1768814011393,0.01887772,93108.0,93093.0,0.010747]
[1768814011708,0.01887772,93108.0,93090.0,0.14403264]
[1768814011894,0.01887772,93105.0,93094.0,0.010747]
[1768814014402,0.01887772,93104.0,93089.0,0.010748]
[1768814014598,0.01887772,93104.0,93091.0,0.010748]
[1768814015307,0.01887772,93104.0,93088.0,0.010748]
[1768814015809,0.010746,93107.0,93088.0,0.010748]
[1768814015810,0.01887772,93101.0,93088.0,0.010748]
[1768814016606,0.0096792,93101.0,93088.0,0.010748]
[1768814017306,0.14403264,93100.0,93084.0,0.00236346]
[1768814017504,0.01887772,93097.0,93084.0,0.01311146]
[1768814017807,0.0096792,93097.0,93084.0,0.01311146]
[1768814019598,0.14403264,93100.0,93084.0,0.00236346]
[1768814019920,0.14403264,93100.0,93090.0,0.010748]
[1768814020706,0.01920065,93108.0,93087.0,0.0048266]
[1768814021215,0.00961897,93107.0,93087.0,0.0048266]
[1768814021406,0.01920065,93107.0,93093.0,0.010747]
[1768814021802,0.01920065,93106.0,93091.0,0.010748]
[1768814022810,0.00961897,93105.0,93091.0,0.010748]
[1768814023203,0.09672,93104.0,93091.0,0.010748]
[1768814024211,0.09672,93104.0,93087.0,0.0048266]
[1768814024512,0.11592065,93104.0,93090.0,0.010748]
[1768814025506,0.01920065,93099.0,93087.0,0.010748]
[1768814025706,0.01920065,93097.0,93087.0,0.010748]
[1768814025906,0.00961897,93099.0,93089.0,0.010748]
[1768814026309,0.00961897,93099.0,93091.0,0.010748]
[1768814026509,0.00958168,93101.0,93091.0,0.010748]
[1768814028206,0.00958168,93101.0,93088.0,0.010748]
[1768814028914,0.09672,93104.0,93090.0,0.14403264]
[1768814029109,0.09672,93104.0,93089.0,0.00506192]
[1768814029309,0.09672,93104.0,93093.0,0.010747]
[1768814032718,0.11659222,93104.0,93093.0,0.010747]
[1768814033821,0.11659222,93104.0,93091.0,0.010747]
[1768814034021,0.01987222,93103.0,93091.0,0.010747]
[1768814034817,0.00996283,93102.0,93091.0,0.010747]
[1768814035018,0.01987222,93101.0,93088.0,0.010748]
[1768814035325,0.01987222,93098.0,93087.0,0.010748]
[1768814035712,0.01987222,93093.0,93072.0,0.01851061]
[1768814035913,0.01987222,93093.0,93086.0,0.010748]
[1768814036222,0.00990939,93093.0,93086.0,0.010748]
[1768814036417,0.00996283,93096.0,93086.0,0.010748]
[1768814036821,0.01007047,93099.0,93086.0,0.010748]
[1768814037021,0.0200333,93099.0,93080.0,0.14403264]
[1768814037223,0.0200333,93099.0,93087.0,0.010748]
[1768814038329,0.00990939,93095.0,93083.0,0.0151453]
[1768814038628,0.00990939,93095.0,93076.0,0.1061861]
[1768814038830,0.00990939,93095.0,93077.0,0.0094661]
[1768814039423,0.00990939,93095.0,93083.0,0.010748]
[1768814039729,0.00990939,93095.0,93083.0,0.01550601]
[1768814040029,0.00990939,93095.0,93082.0,0.010749]
[1768814040232,0.00996283,93093.0,93079.0,0.010749]
[1768814040431,0.00990939,93092.0,93083.0,0.010748]
[1768814041822,0.00996283,93097.0,93085.0,0.010748]
[1768814042022,0.01987222,93097.0,93085.0,0.010748]
[1768814043932,0.01987222,93097.0,93082.0,0.02557309]
[1768814044640,0.01987222,93097.0,93082.0,0.01482409]
[1768814044934,0.00016108,93099.0,93082.0,0.0094661]
[1768814045134,0.00016108,93099.0,93082.0,0.02488127]
[1768814045332,0.01007047,93099.0,93082.0,0.01541517]
[1768814045537,0.01007047,93099.0,93079.0,0.0094661]
[1768814045738,0.01007047,93099.0,93089.0,0.010748]
[1768814046737,0.01007047,93099.0,93086.0,0.010748]
[1768814047137,0.01007047,93099.0,93089.0,0.00236334]
[1768814047531,0.00990939,93097.0,93086.0,0.010748]
[1768814047728,0.00990939,93095.0,93086.0,0.010748]
[1768814047928,0.01987222,93095.0,93088.0,0.010748]
[1768814048128,0.00990939,93095.0,93088.0,0.010748]
[1768814048731,0.00990939,93094.0,93074.0,0.09672]
[1768814049038,0.01987222,93094.0,93074.0,0.09672]
[1768814049237,0.01987222,93094.0,93075.0,0.0094661]
[1768814049440,0.01987222,93094.0,93076.0,0.02704098]
[1768814049630,0.00996283,93093.0,93076.0,0.02704098]
[1768814049826,0.00990939,93094.0,93076.0,0.02704098]
[1768814050031,0.01987222,93094.0,93076.0,0.02704098]
[1768814050233,0.01987222,93094.0,93076.0,0.03650708]
[1768814050436,0.00996283,93098.0,93078.0,0.0094661]
[1768814051542,0.00996283,93098.0,93083.0,0.010748]
[1768814052042,0.00996283,93098.0,93085.0,0.010748]
[1768814054941,0.00996283,93098.0,93081.0,0.010749]
[1768814055427,0.00996283,93098.0,93083.0,0.010748]
[1768814056044,0.01987222,93098.0,93083.0,0.010748]
[1768814056244,0.00996283,93097.0,93083.0,0.010748]
[1768814058433,0.010747,93098.0,93078.0,0.0094661]
[1768814058637,0.00990939,93095.0,93082.0,0.010749]
[1768814058952,0.02070983,93098.0,93082.0,0.010749]
[1768814059945,0.00996283,93096.0,93082.0,0.010749]
[1768814068053,0.00988454,93090.0,93077.0,0.010749]
[1768814068238,0.00988454,93090.0,93073.0,0.10747]
[1768814068438,0.00988454,93087.0,93075.0,0.010749]
[1768814068642,0.01937403,93080.0,93069.0,0.00236385]
[1768814068853,0.00988454,93079.0,93069.0,0.00236385]
[1768814069751,0.09672,93082.0,93052.0,0.010752]
[1768814069752,0.00988454,93073.0,93052.0,0.010752]
[1768814069952,0.00988454,93073.0,93050.0,0.00954575]
[1768814069953,0.01075,93071.0,93050.0,0.00954575]
[1768814070153,0.00988454,93072.0,93054.0,0.17990421]
[1768814070359,0.00988454,93072.0,93049.0,0.01220253]
[1768814070360,0.01937403,93067.0,93049.0,0.00236436]
[1768814070541,0.09672,93072.0,93049.0,0.00236436]
[1768814070542,0.00988454,93062.0,93049.0,0.00236436]
[1768814070850,0.00999266,93061.0,93049.0,0.00236436]
[1768814071047,0.00948949,93055.0,93044.0,0.00236447]
[1768814071241,0.00948949,93055.0,93045.0,0.010753]
[1768814071843,0.09672,93060.0,93039.0,0.01572071]
[1768814071844,0.00948949,93054.0,93039.0,0.01572071]
[1768814072049,0.00948949,93054.0,93033.0,0.01106494]
[1768814072252,0.00948949,93054.0,93034.0,0.17024161]
[1768814072452,0.00948949,93054.0,93034.0,0.54690576]
[1768814072652,0.00948949,93054.0,93034.0,0.00954575]
[1768814072853,0.00948949,93054.0,93035.0,0.31]
[1768814073055,0.00948949,93054.0,93033.0,0.01627102]
[1768814073254,0.00948949,93054.0,93035.0,0.010754]
[1768814073950,0.00948949,93052.0,93029.0,0.00236487]
[1768814074158,0.00948949,93047.0,93029.0,0.00236487]
[1768814074359,0.00948949,93045.0,93029.0,0.01311987]
[1768814074558,0.00948949,93043.0,93029.0,0.01311987]
[1768814074960,0.00948949,93043.0,93029.0,0.00236487]
[1768814076365,0.00948949,93043.0,93020.0,0.7]
[1768814076852,0.00948949,93043.0,93034.0,0.010754]
[1768814077361,1e-07,93054.0,93050.0,0.010752]
[1768814077750,0.09676,93062.0,93061.0,0.010751]
[1768814077966,0.09676,93062.0,93028.0,0.053776]
[1768814077967,0.09676,93076.0,93068.0,0.01075]
[1768814078260,0.09676,93077.0,93071.0,0.01075]
[1768814078565,0.09676,93077.0,93064.0,0.00983817]
[1768814078766,0.09676,93077.0,93058.0,0.01938392]
[1768814079461,0.00948949,93082.0,93068.0,0.01075]
[1768814079661,0.09676,93081.0,93063.0,0.00983817]
[1768814079859,0.09676,93081.0,93064.0,0.00983817]
[1768814080261,0.09676,93081.0,93068.0,0.01075]
[1768814080768,0.09676,93081.0,93059.0,0.00968113]
[1768814080967,0.09676,93081.0,93060.0,0.00968113]
[1768814081167,0.09676,93081.0,93071.0,0.01075]
[1768814081466,4.6e-07,93085.0,93078.0,0.010749]
[1768814081766,0.09676,93097.0,93085.0,0.010748]
[1768814082359,0.09676,93097.0,93081.0,0.010749]
[1768814082562,0.11200306,93097.0,93081.0,0.010749]
[1768814082760,0.11200306,93097.0,93082.0,0.00016117]
[1768814083573,3.4e-07,93089.0,93083.0,0.010749]
[1768814083869,3.4e-07,93089.0,93082.0,0.00016117]
[1768814084070,3.4e-07,93089.0,93087.0,0.010748]
[1768814084266,0.09676,93097.0,93087.0,0.010748]
[1768814085372,0.09676,93100.0,93082.0,0.00016117]
[1768814085672,0.09676,93100.0,93090.0,0.010748]
[1768814086573,0.09676,93100.0,93082.0,0.02628928]
[1768814086574,0.01524306,93087.0,93060.0,0.00968113]
[1768814086773,0.01524306,93086.0,93063.0,0.00968113]
[1768814086973,0.02599206,93083.0,93064.0,0.53736001]
[1768814087174,0.02599206,93083.0,93062.0,0.010751]
[1768814087372,0.010748,93087.0,93070.0,0.53736001]
[1768814087572,0.01524306,93088.0,93071.0,0.01075]
[1768814087872,0.01540423,93088.0,93076.0,0.010749]
[1768814088072,0.00016117,93088.0,93078.0,0.010749]
[1768814088472,0.00016117,93088.0,93076.0,0.01644698]
[1768814088473,1.7e-07,93088.0,93076.0,0.01644698]
[1768814088676,0.09676,93097.0,93076.0,0.01644698]
[1768814088978,0.09676,93097.0,93082.0,0.010749]
[1768814089175,0.09676,93097.0,93078.0,0.02043013]
[1768814089973,0.09676,93097.0,93078.0,0.0205913]
[1768814090880,0.09676,93097.0,93081.0,0.010749]
[1768814091174,0.09676,93097.0,93078.0,0.0205913]
[1768814091683,0.11200306,93097.0,93078.0,0.0205913]
[1768814091873,0.01524306,93096.0,93078.0,0.0098423]
[1768814092178,0.00959221,93094.0,93078.0,0.00016117]
[1768814092379,0.02483527,93092.0,93078.0,0.53752118]
[1768814092575,0.02778834,93089.0,93078.0,0.00016117]
[1768814092774,0.02778834,93088.0,93071.0,0.01075]
[1768814092970,0.02778834,93088.0,93073.0,0.01075]
[1768814093271,0.02778834,93088.0,93074.0,0.53736001]
[1768814093479,0.02778834,93088.0,93075.0,0.53736001]
[1768814093869,0.02778834,93088.0,93076.0,0.53736001]
[1768814094071,0.02778834,93088.0,93074.0,0.53499605]
[1768814094274,0.02778834,93088.0,93075.0,0.53499605]
[1768814094673,0.02778834,93088.0,93076.0,0.53499605]
[1768814094873,0.02778834,93088.0,93073.0,0.53499605]
[1768814095073,0.02778834,93088.0,93074.0,0.53499605]
[1768814095377,0.010748,93087.0,93074.0,0.53499605]
[1768814095576,0.010748,93087.0,93076.0,0.53499605]
[1768814095778,0.010748,93087.0,93074.0,0.53499605]
[1768814096181,0.010748,93087.0,93076.0,0.53499605]
[1768814096381,0.010748,93087.0,93074.0,0.53499605]
[1768814096581,0.02778834,93088.0,93074.0,0.54574605]
[1768814096782,0.02778834,93088.0,93076.0,0.53499605]
[1768814097184,0.02778834,93088.0,93077.0,0.53499605]
[1768814097390,0.02778834,93088.0,93076.0,0.53499605]
[1768814097576,0.00016117,93094.0,93076.0,0.54425619]
[1768814097881,0.00016117,93094.0,93077.0,0.00926014]
[1768814098079,0.00016117,93094.0,93081.0,0.010749]
[1768814098585,0.00016117,93094.0,93082.0,0.53499605]
[1768814099882,0.00016117,93094.0,93081.0,0.010749]
[1768814100189,0.00016117,93094.0,93083.0,0.54425619]
[1768814100394,0.00016117,93094.0,93084.0,0.00926014]
[1768814100686,0.00016117,93094.0,93084.0,0.54425619]
[1768814100887,0.00016117,93094.0,93084.0,0.53499605]
[1768814101681,0.00016117,93094.0,93085.0,0.53499605]
[1768814101985,0.00016117,93094.0,93082.0,0.53499605]
[1768814102189,0.010747,93093.0,93082.0,0.53499605]
[1768814102383,0.010747,93093.0,93084.0,0.53499605]
[1768814102603,0.00016117,93094.0,93083.0,0.53499605]
[1768814102788,0.00016117,93094.0,93081.0,0.010749]
[1768814102789,0.00016117,93094.0,93084.0,0.53499605]
[1768814102990,0.00016117,93094.0,93085.0,0.53499605]
[1768814102991,0.14436125,93094.0,93085.0,0.53499605]
[1768814103194,0.00016117,93094.0,93083.0,0.53499605]
[1768814103398,0.01090817,93094.0,93084.0,0.53499605]
[1768814103602,0.01090817,93094.0,93082.0,0.53499605]
[1768814103808,0.14420008,93092.0,93082.0,0.53499605]
[1768814104003,0.14420008,93092.0,93085.0,0.53499605]
[1768814104202,0.010748,93091.0,93083.0,0.5033056]
[1768814104512,0.010748,93091.0,93071.0,0.00926014]
[1768814104513,0.010748,93091.0,93085.0,0.4758291]
[1768814104806,0.01090817,93094.0,93078.0,0.49583824]
[1768814105009,0.14420008,93090.0,93080.0,0.4758291]
[1768814105209,0.14420008,93090.0,93082.0,0.4758291]
[1768814105399,0.14420008,93090.0,93079.0,0.00926014]
[1768814105601,0.15494808,93090.0,93077.0,0.02889944]
[1768814105802,0.010747,93093.0,93078.0,0.010749]
[1768814106003,0.14420008,93090.0,93077.0,0.02889944]
[1768814106314,0.010748,93089.0,93077.0,0.02889944]
[1768814106494,0.14420008,93090.0,93077.0,0.03964844]
[1768814106700,0.14420008,93090.0,93077.0,0.02889944]
[1768814106908,0.00016117,93094.0,93077.0,0.02889944]
[1768814107116,0.14420008,93090.0,93077.0,0.02889944]
[1768814107303,0.14420008,93090.0,93078.0,0.010749]
[1768814107508,0.02527439,93089.0,93078.0,0.010749]
[1768814107710,0.14420008,93090.0,93078.0,0.010749]
[1768814107908,0.02527439,93089.0,93078.0,0.00838464]
[1768814108110,0.14420008,93090.0,93078.0,0.00838464]
[1768814108301,0.02527512,93089.0,93080.0,0.010749]
[1768814108500,0.02778834,93110.0,93091.0,0.00926014]
[1768814108803,0.02517695,93103.0,93095.0,0.00926014]
[1768814109017,0.14420008,93105.0,93084.0,0.00926014]
[1768814109196,0.14420008,93094.0,93077.0,0.00926014]
[1768814109402,0.14420008,93090.0,93077.0,0.02000914]
[1768814109599,0.14420008,93090.0,93077.0,0.010749]
[1768814109805,0.14420008,93090.0,93075.0,0.09692117]
[1768814110111,0.14420008,93090.0,93075.0,0.10618131]
[1768814110610,0.14420008,93090.0,93076.0,0.010749]
[1768814111202,0.14420008,93090.0,93076.0,0.02000914]
[1768814111604,0.16448969,93086.0,93065.0,0.00926014]
[1768814111798,0.14420008,93080.0,93066.0,0.00926014]
[1768814112015,0.14420008,93080.0,93062.0,0.010751]
[1768814112203,0.14420008,93080.0,93060.0,0.09672]
[1768814112204,0.14420008,93080.0,93065.0,0.010751]
[1768814114015,0.14420008,93080.0,93066.0,0.03815958]
[1768814114611,0.14420008,93080.0,93066.0,0.03409532]
[1768814114917,0.14420008,93080.0,93065.0,0.010751]
[1768814115516,0.010749,93079.0,93055.0,0.03965144]
[1768814115714,0.14420008,93071.0,93056.0,0.09676]
[1768814115901,0.14420008,93071.0,93056.0,0.12565944]
[1768814116101,0.14420008,93071.0,93069.0,0.00236385]
[1768814116407,0.010749,93077.0,93069.0,0.00236385]
[1768814116607,0.00016117,93073.0,93069.0,0.00236385]
[1768814118016,0.00016117,93073.0,93057.0,0.010751]
[1768814118218,0.00016117,93073.0,93056.0,0.12565944]
[1768814118219,0.14420008,93070.0,93056.0,0.12565944]
[1768814118919,0.14420008,93070.0,93060.0,0.010751]
[1768814119514,1.7e-07,93073.0,93060.0,0.02889944]
[1768814119814,1.7e-07,93073.0,93063.0,0.010751]
[1768814120318,1.7e-07,93073.0,93060.0,0.03965044]
[1768814120517,1.7e-07,93073.0,93060.0,0.02889944]
[1768814120815,1.7e-07,93073.0,93060.0,0.03965044]
[1768814121120,1.7e-07,93073.0,93062.0,0.010751]
[1768814122122,1.7e-07,93073.0,93064.0,0.010751]
[1768814122423,1.7e-07,93073.0,93060.0,0.010751]
[1768814122721,0.14420008,93070.0,93060.0,0.010751]
[1768814123123,1.7e-07,93073.0,93058.0,0.04435634]
[1768814123322,1.7e-07,93073.0,93058.0,0.05426059]
[1768814123621,0.05086028,93096.0,93078.0,0.010749]
[1768814123816,0.13269034,93095.0,93078.0,0.010749]
[1768814124016,0.14420008,93090.0,93072.0,0.04435634]
[1768814124215,0.14420008,93084.0,93072.0,0.04435634]
[1768814124414,0.14420008,93084.0,93072.0,0.05510634]
[1768814125528,0.14420008,93084.0,93072.0,0.04435634]
[1768814125923,0.14420008,93084.0,93073.0,0.01075]
[1768814126226,0.14420008,93084.0,93075.0,0.010749]
[1768814126928,0.14420008,93085.0,93075.0,0.010749]
[1768814127227,0.02518109,93084.0,93075.0,0.010749]
[1768814127527,0.14420008,93090.0,93072.0,0.04435634]
[1768814127728,9.2e-07,93089.0,93072.0,0.04435634]
[1768814128032,0.00236295,93104.0,93085.0,0.04435634]
[1768814128323,0.14420008,93100.0,93088.0,0.010748]
[1768814129318,0.00236295,93104.0,93085.0,0.04435634]
[1768814129633,0.00236283,93109.0,93093.0,0.00990425]
[1768814129820,8.3e-07,93109.0,93101.0,0.04435634]
[1768814130127,0.09676,93117.0,93106.0,0.010746]
[1768814130328,0.09676,93117.0,93103.0,0.010746]
[1768814130528,0.09676,93117.0,93105.0,0.010746]
[1768814130829,0.09676,93117.0,93102.0,0.05510234]
[1768814131128,0.09676,93117.0,93103.0,0.31]
[1768814133218,0.010745,93115.0,93103.0,0.31]
[1768814133621,0.09676,93117.0,93103.0,0.31]
[1768814134620,0.010745,93116.0,93103.0,0.31]
[1768814137432,0.09676,93117.0,93103.0,0.31]
[1768814137932,0.09676,93117.0,93103.0,0.320746]
[1768814139124,0.09676,93117.0,93103.0,0.36510234]
[1768814139832,0.09676,93117.0,93107.0,0.05624945]
[1768814140420,0.09676,93117.0,93107.0,0.00838266]
[1768814140929,0.00236244,93124.0,93109.0,0.00934361]
[1768814141131,0.107463,93135.0,93119.0,0.05624745]
[1768814141337,0.02442821,93134.0,93121.0,0.05624745]
[1768814141628,0.09672,93135.0,93118.0,0.010744]
[1768814141836,0.09672,93135.0,93115.0,0.05624845]
[1768814141837,0.107463,93135.0,93115.0,0.05624845]
[1768814142035,0.010743,93133.0,93115.0,0.05624845]
[1768814143329,0.09672,93135.0,93117.0,0.010745]
[1768814143636,0.09672,93135.0,93119.0,0.010744]
[1768814144135,0.09672,93135.0,93114.0,0.04550345]
[1768814144136,0.00969735,93134.0,93114.0,0.04550345]
[1768814144328,0.010743,93133.0,93118.0,0.010744]
[1768814144730,0.00969735,93134.0,93120.0,0.010744]
[1768814145829,0.09672,93135.0,93115.0,0.05500814]
[1768814146035,0.010743,93134.0,93115.0,0.00950469]
[1768814146236,0.010743,93134.0,93119.0,0.010744]
[1768814146923,0.09672,93135.0,93121.0,0.010744]
[1768814147328,0.010743,93133.0,93118.0,0.010744]
[1768814152243,0.010743,93131.0,93117.0,0.04550345]
[1768814152639,0.010743,93131.0,93115.0,0.02024969]
[1768814152942,0.010743,93129.0,93115.0,0.00950469]
[1768814153543,0.14407963,93130.0,93116.0,0.010745]
[1768814153746,0.14407963,93130.0,93118.0,0.010744]
[1768814155145,0.14407963,93130.0,93118.0,0.00838054]
[1768814155546,0.14407963,93130.0,93120.0,0.010744]
[1768814156443,0.14407963,93130.0,93115.0,0.00016108]
[1768814156647,0.03647963,93130.0,93115.0,0.00016108]
[1768814156839,0.05393805,93132.0,93115.0,0.00016108]
[1768814157146,0.14407963,93130.0,93115.0,0.00016108]
[1768814157534,0.01310393,93144.0,93127.0,0.0463276]
[1768814157738,0.01310393,93144.0,93116.0,0.00963219]
[1768814157739,0.18727468,93137.0,93116.0,0.00963219]
[1768814157941,0.14407963,93130.0,93121.0,0.107464]
[1768814158136,0.14407963,93130.0,93123.0,0.010744]
[1768814158346,0.14407963,93133.0,93123.0,0.010744]
[1768814158947,0.05294045,93137.0,93123.0,0.010744]
[1768814159550,0.05294045,93137.0,93122.0,0.010744]
[1768814159745,0.14407963,93140.0,93126.0,0.010743]
[1768814160439,0.14407963,93140.0,93123.0,0.010744]
[1768814161351,0.04319505,93139.0,93123.0,0.010744]
[1768814161551,0.06368345,93130.0,93115.0,0.00016108]
[1768814161753,0.05294045,93129.0,93115.0,0.00016108]
[1768814163043,0.010743,93130.0,93115.0,0.01090608]
[1768814164546,0.010743,93128.0,93115.0,0.00016108]
[1768814166158,0.06368445,93126.0,93115.0,0.00016108]
[1768814166655,0.0097454,93132.0,93115.0,0.00016108]
[1768814166948,0.09672,93142.0,93122.0,0.010744]
[1768814166949,0.010742,93138.0,93122.0,0.010744]
[1768814167156,0.06368345,93132.0,93115.0,0.00016108]
[1768814167344,0.05294045,93131.0,93115.0,0.00016108]
[1768814167856,0.010743,93130.0,93115.0,0.00016108]
[1768814169358,0.010743,93130.0,93115.0,0.01090608]
[1768814169652,0.010742,93136.0,93115.0,0.04648868]
[1768814169848,0.03529868,93135.0,93120.0,0.010744]
[1768814170049,0.010743,93133.0,93117.0,0.010745]
[1768814170656,0.05294045,93129.0,93115.0,0.00016108]
[1768814170854,0.0097454,93128.0,93115.0,0.00016108]
[1768814171052,0.04319505,93127.0,93115.0,0.00016108]
[1768814171455,0.0097454,93128.0,93115.0,0.01090608]
[1768814172356,0.010743,93134.0,93115.0,0.00016108]
[1768814172561,0.02457319,93133.0,93115.0,0.00016108]
[1768814172763,0.02457319,93132.0,93115.0,0.00016108]
[1768814172946,0.04319505,93136.0,93115.0,0.00016108]
[1768814172947,0.05294045,93129.0,93115.0,0.00016108]
[1768814174058,0.0097454,93129.0,93116.0,0.010745]
[1768814175952,0.0097454,93129.0,93115.0,0.00016108]
[1768814175953,0.04319505,93133.0,93118.0,0.010744]
[1768814176153,0.02457522,93132.0,93118.0,0.010744]
[1768814176362,0.02457522,93131.0,93118.0,0.010744]
[1768814176560,0.02457522,93130.0,93118.0,0.010744]
[1768814176760,0.02457522,93130.0,93115.0,0.00016108]
[1768814176761,0.05294045,93130.0,93115.0,0.00016108]
[1768814177063,0.05294045,93129.0,93116.0,0.010745]
[1768814179070,0.05294045,93134.0,93115.0,0.00016108]
[1768814179367,0.09668,93140.0,93130.0,0.010743]
[1768814180756,0.14962045,93140.0,93126.0,0.010743]
[1768814182464,0.1064254,93140.0,93120.0,0.05595979]
[1768814182864,0.00901902,93137.0,93115.0,0.00016108]
[1768814183071,0.09668,93140.0,93115.0,0.00016108]
[1768814183072,0.00901902,93135.0,93122.0,0.010744]
[1768814183671,0.00901902,93135.0,93124.0,0.010744]
[1768814184865,0.14364454,93140.0,93117.0,0.04373521]
[1768814185066,0.04696454,93139.0,93116.0,0.010745]
[1768814185265,0.04289437,93135.0,93115.0,0.00016108]
[1768814185461,0.00901902,93136.0,93117.0,0.04373521]
[1768814185656,0.00901902,93136.0,93118.0,0.04373521]
[1768814185861,0.00901902,93136.0,93125.0,0.010744]
[1768814187270,0.00901902,93136.0,93125.0,0.00838105]
[1768814187472,0.107422,93140.0,93125.0,0.00838105]
[1768814188175,0.107422,93140.0,93122.0,0.010744]
[1768814188472,0.15856061,93140.0,93122.0,0.010744]
[1768814188656,0.05093864,93139.0,93122.0,0.010744]
[1768814188858,0.05093864,93139.0,93120.0,0.04373521]
[1768814190473,0.05093864,93139.0,93124.0,0.010744]
[1768814191172,0.107422,93140.0,93124.0,0.05447921]
[1768814191377,0.02447088,93139.0,93124.0,0.010744]
[1768814191675,0.02447088,93138.0,93124.0,0.010744]
[1768814191872,0.0499461,93133.0,93115.0,0.00016108]
[1768814192082,0.0499461,93129.0,93116.0,0.107425]
[1768814192573,0.0606891,93129.0,93116.0,0.09668]
[1768814193180,0.0499461,93129.0,93117.0,0.010745]
[1768814193666,0.03892843,93126.0,93115.0,0.00016108]
[1768814195269,0.00901902,93126.0,93115.0,0.01090608]
[1768814195569,0.00236244,93124.0,93115.0,0.01090608]
[1768814199974,4.4e-07,93124.0,93120.0,0.010744]
[1768814200177,4.4e-07,93124.0,93115.0,0.00016108]
[1768814200178,4.4e-07,93124.0,93122.0,0.06669517]
[1768814200393,0.09904193,93144.0,93128.0,0.04648857]
[1768814200585,0.0096504,93167.0,93150.0,0.010741]
[1768814200887,0.0096504,93167.0,93141.0,0.04648857]
[1768814200888,0.0096504,93167.0,93154.0,0.01074]
[1768814201176,0.09904131,93169.0,93156.0,0.01074]